Cogmind - Beta 17 @@@ ROGUE MODE // 2026.08.23 @ 21:41:40 Player: Lazz Result: Destroyed by G-47 Trooper with Particle Gun Performance ------------- Evolutions (2) 1000 Regions Visited (3) 600 Robots Destroyed (28) 140 Value Destroyed (684) 684 Prototype IDs (1) 20 Alien Tech Used (0) 0 Bonus (0) 0 TOTAL SCORE: 2444 Bonus ------- None Cogmind --------- Core Integrity 0/550 Matter 300/300 Energy 100/100 System Corruption 0% Temperature Cool (9) Movement Core (100) Ox1 Location -8/Materials Parts ------- > --- POWER (1) -------- (None) > --- PROPULSION (3) --- (None) > --- UTILITY (5) ------ Small Storage Unit > --- WEAPON (2) ------- (None) > --- INVENTORY (8) ---- Light Deuterium Engine Carbon-fiber Leg Carbon-fiber Leg Assault Rifle Peak State ------------ > --- POWER ------------ Improved Ion Engine > --- PROPULSION ------- Improved Aluminum Leg Titanium Leg Titanium Leg > --- UTILITY ---------- Disposable Heat Sink Small Storage Unit Improved Terrain Scanner Terrain Scan Processor Seismic Detector > --- WEAPON ----------- Improved EM Shotgun Improved EM Shotgun > --- INVENTORY -------- Ion Engine Light Deuterium Engine EM Pulse Gun Improved EM Shotgun Ion Cannon Assault Rifle [Rating: 26] Favorites ----------- Power Ion Engine Engine Ion Engine Propulsion Aluminum Leg Leg Aluminum Leg Utility Small Storage Unit Device Seismic Detector Storage Small Storage Unit Processor Terrain Scan Processor Protection Reactive Plating Weapon Improved EM Shotgun Energy Gun Improved EM Shotgun Energy Cannon Ion Cannon Build | -11 -10 -9 -8 ------- Run | Yrd Mat Mat Mat Slots Evolved 4 | . . 2 2 Power . | . . . . Propulsion 1 | . . 1 . Utility 3 | . . 1 2 Weapon . | . . . . Parts Attached 21 | 7 2 3 9 Power 3 | 1 . 1 1 Engine 3 | 1 . 1 1 Core . | . . . . Reactor . | . . . . Propulsion 6 | 2 . 2 2 Treads . | . . . . Leg 6 | 2 . 2 2 Wheel . | . . . . Hover . | . . . . Flight . | . . . . Utility 6 | 2 . . 4 Device 3 | 1 . . 2 Storage 1 | 1 . . . Processor 1 | . . . 1 Hackware . | . . . . Protection 1 | . . . 1 Artifact . | . . . . Weapon 6 | 2 2 . 2 Energy Gun 5 | 2 2 . 1 Energy Cannon 1 | . . . 1 Ballistic Gun . | . . . . Ballistic Cannon . | . . . . Launcher . | . . . . Special Weapon . | . . . . Impact Weapon . | . . . . Slashing Weapon . | . . . . Piercing Weapon . | . . . . Special Melee Weapon . | . . . . Unidentified Prototypes 1 | . 1 . . Parts Lost 13 | . . . 13 Power 2 | . . . 2 Propulsion 3 | . . . 3 Utility 3 | . . . 3 Weapon 5 | . . . 5 Highest Loss Streak 12 | . . . 12 To Critical Strikes . | . . . . Average Backups 5 | 1 4 7 6 Power 1 | . 1 1 1 Propulsion . | . . . 1 Utility 1 | . 1 2 . Weapon 2 | . 1 3 3 Tool/Special . | . . . . Unused Backups 5 | . 1 . 4 Power 1 | . . . 1 Propulsion 2 | . . . 2 Utility . | . . . . Weapon 2 | . 1 . 1 Tool/Special . | . . . . Average Slot Usage (%) 85 | . 100 82 83 Engine 10 | . 14 11 7 Leg 26 | . 28 27 23 Device 14 | . 14 11 20 Storage 10 | . 14 11 9 Processor 1 | . . . 6 Energy Gun 20 | . 28 22 14 Peak Build Rating 26 | 7 12 15 26 Average Rating 13 | 5 9 13 20 On Entrance 8 | . 7 12 15 Avg Prop Armor Cover (%) . | . . . . Naked Turns . | . . . . Heaviest Build 30 | 15 17 19 30 Greatest Support 47 | 20 20 33 47 Greatest Overweight (x) 1 | 1 . . 1 Average Overweight (x) . | . . . . Largest Inventory Capacity 8 | 8 8 8 8 Average Capacity 7 | 7 8 8 8 Most Carried 8 | 3 6 8 8 Average Carried 5 | 1 4 7 6 Final Capacity 8 | 8 8 8 8 Final Carried 8 | 3 6 8 4 Class Distribution -------------------- 95% | Mutant 4% | Scavenger-Mutant Dominant Class ---------------- Mutant | -10/Materials Mutant | -9/Materials Mutant | -8/Materials Resources | -11 -10 -9 -8 ----------- Run | Yrd Mat Mat Mat Matter Collected 365 | 270 20 30 45 Remotely . | . . . . Salvage Created 1037 | 130 108 403 396 Parts 75 | 9 11 27 28 Haulers Intercepted 1 | . . . 1 Recyclers Shooed 2 | . . . 2 Parts Field Recycled . | . . . . Retrieved Matter . | . . . . Parts Self-Destructed . | . . . . Prevented . | . . . . Parts Restored . | . . . . Kills | -11 -10 -9 -8 ------- Run | Yrd Mat Mat Mat Combat Hostiles Destroyed 22 | . 4 12 6 Guns 20 | . 4 11 5 Cannons 1 | . . . 1 AOE 1 | . . 1 . Classes Destroyed 10 | 2 3 1 4 Tunneler 3 | 3 . . . Hauler 1 | . . . 1 Recycler 1 | 1 . . . Watcher 1 | . 1 . . Swarmer 9 | . 3 6 . Grunt 9 | . 1 5 3 Duelist 1 | . . 1 . Sentry 1 | . . . 1 Specialist 1 | . . . 1 Hunter 1 | . . . 1 Best Kill Streak 6 | 2 3 3 6 Combat Bots Only 3 | . 3 3 3 Max Kills in Single Turn 2 | 1 1 2 2 Gunslinging 1 | . . 1 . Exploded 1 | . . 1 . Melee . | . . . . Uniques/NPCs Destroyed . | . . . . Combat | -11 -10 -9 -8 -------- Run | Yrd Mat Mat Mat Hostile Shots Fired 191 | . 12 18 161 Missed 44 | . 2 4 38 Hits 147 | . 10 14 123 Melee 2 | . . 2 . Projectile 145 | . 10 12 123 Critical Strikes 4 | . . . 4 Damage Taken 2165 | . 94 197 1874 Core 691 | . 20 111 560 Absorbed by Shields . | . . . . Ignored by Resistances 79 | . . . 79 Core Remaining (%) 88 | 100 92 72 . Volleys Fired 59 | 18 7 17 17 Largest 2 | 2 2 2 2 Hottest 105 | 90 90 90 105 Shots Fired 117 | 35 14 34 34 Gun 114 | 35 14 34 31 Cannon 3 | . . . 3 Launcher . | . . . . Special . | . . . . Kinetic . | . . . . Thermal 25 | 18 4 . 3 Explosive . | . . . . Electromagnetic 92 | 17 10 34 31 Robot Hit Streak 10 | 3 7 7 10 Robot Miss Streak 5 | 4 3 5 5 Penetration Max . | . . . . Secondary Targets 4 | . 2 2 . Max Gunslinging Chain 1 | . 1 1 . Shots Hit Robots 75 | 16 9 26 24 Core Hits 53 | 5 7 21 20 Critical Kills . | . . . . Critical Parts Destroyed . | . . . . Critical Strikes 2 | 2 . . . Burn 2 | 2 . . . Melee Attacks . | . . . . Impact . | . . . . Slashing . | . . . . Piercing . | . . . . Sneak Attacks . | . . . . Combat Hostiles . | . . . . Follow-up Attacks . | . . . . Damage Inflicted 1436 | 204 108 419 705 Guns 1184 | 204 108 371 501 Cannons 69 | . . . 69 Explosions 183 | . . 48 135 Melee . | . . . . Ramming . | . . . . Kinetic . | . . . . Thermal 390 | 100 38 48 204 Explosive . | . . . . Electromagnetic 1046 | 104 70 371 501 Impact . | . . . . Slashing . | . . . . Piercing . | . . . . Highest Corruption . | . . . . Average Corruption . | . . . . Corruption Purged . | . . . . Corruption Blocked . | . . . . Overload Shots . | . . . . Overflow Damage 17 | . . . 17 Projectiles . | . . . . Explosions 17 | . . . 17 Melee . | . . . . Knockbacks . | . . . . Impact . | . . . . Kinetic . | . . . . Secondary . | . . . . Self-Inflicted Damage 54 | . . 25 29 Shots 2 | . . 1 1 Rammed 2 | . . . 2 Targets Rammed 2 | . . . 2 Kicked . | . . . . Crushed . | . . . . Highest Temperature 271 | 210 90 102 271 Average Temperature 63 | 66 37 35 92 Received Heat Transfer 768 | . 24 24 720 Effects 1 | 1 . . . Interference 1 | 1 . . . Siege Activations . | . . . . Martial Activations . | . . . . Shielding Activations . | . . . . Robots Disrupted . | . . . . Combat Hostiles . | . . . . Robots Corrupted . | . . . . Combat Hostiles . | . . . . Parts Fried . | . . . . Impact Corruptions . | . . . . Robots Melted . | . . . . Combat Hostiles . | . . . . Parts Melted 1 | . . 1 . Heat Transferred 866 | 444 111 50 261 Parts Sabotaged . | . . . . Parts Stolen . | . . . . Parts Stripped . | . . . . Power Chain Reactions 3 | . . 1 2 Alert | -11 -10 -9 -8 ------- Run | Yrd Mat Mat Mat Maximum Alert Level . | . . . . Low Security (%) 100 | 100 100 100 100 Level 1 . | . . . . Level 2 . | . . . . Level 3 . | . . . . Level 4 . | . . . . Level 5 . | . . . . High Security . | . . . . Max Security . | . . . . Peak Influence 130 | 5 77 130 74 Initial 37 | . . 27 37 Average 32 | . 29 49 21 Influence Increases 595 | 20 113 298 164 Destroy 0b10 Robot/C 440 | . 80 240 120 Destroy 0b10 Robot/NC 30 | 20 5 . 5 Destroy Leader 94 | . 22 40 32 Successful Hack 19 | . 6 13 . Destroy Structure 12 | . . 5 7 Influence Decreases 595 | 20 46 277 252 Entered New Map 91 | . . 40 51 Time Decay 355 | 20 46 202 87 Lost Part 114 | . . . 114 Purge Threat 35 | . . 35 . Squads Dispatched 5 | . 1 1 3 Investigation 1 | . . . 1 Extermination . | . . . . Reinforcement 4 | . 1 1 2 Assault . | . . . . Garrison . | . . . . Intercept . | . . . . Searches Triggered . | . . . . Construction Impeded . | . . . . Haulers Reinforced . | . . . . Active Scanning Responses . | . . . . Cargo Convoy Interrupts . | . . . . Stealth | -11 -10 -9 -8 --------- Run | Yrd Mat Mat Mat Distress Signals 3 | . . 2 1 Communications Jammed . | . . . . Distress Signals . | . . . . Times Spotted 42 | . 6 14 22 Peak Tracking Total 13 | . 3 5 13 Tactical Retreats . | . . . . Traps | -11 -10 -9 -8 ------- Run | Yrd Mat Mat Mat Traps Triggered . | . . . . Indirectly . | . . . . Trap Hack Attempts . | . . . . Triggered . | . . . . Disarmed . | . . . . Reprogrammed . | . . . . Reused . | . . . . Traps Extracted . | . . . . Installed . | . . . . Triggered . | . . . . Machines | -11 -10 -9 -8 ---------- Run | Yrd Mat Mat Mat Machines Disabled . | . . . . Max in Single Turn . | . . . . Machines Repaired . | . . . . Machines Dismantled . | . . . . Machines Sabotaged . | . . . . Overloaded Fab Kills . | . . . . Hacking | -11 -10 -9 -8 --------- Run | Yrd Mat Mat Mat Machines Accessed 7 | . 2 3 2 Terminals 7 | . 2 3 2 Fabricators . | . . . . Repair Stations . | . . . . Recycling Units . | . . . . Scanalyzers . | . . . . Garrison Access . | . . . . Total Hacks 18 | . 5 10 3 Successful 7 | . 2 4 1 Failed 11 | . 3 6 2 Catastrophic 2 | . 2 . . Database Lockouts . | . . . . Manual 13 | . 5 7 1 Terminals 18 | . 5 10 3 Fabricators . | . . . . Repair Stations . | . . . . Recycling Units . | . . . . Scanalyzers . | . . . . Garrison Access . | . . . . Terminal Hacks 6 | . 2 4 . Robot Analysis 3 | . 2 1 . Unreport Threat 2 | . . 2 . Hauler Manifests 1 | . . 1 . Fabricator Hacks . | . . . . Repair Station Hacks . | . . . . Recycling Unit Hacks . | . . . . Scanalyzer . | . . . . Garrison Access Hacks . | . . . . Unauthorized Hacks 1 | . . . 1 Terminals 1 | . . . 1 Sabotage 1 | . . . 1 Fabricators . | . . . . Repair Stations . | . . . . Recycling Units . | . . . . Scanalyzers . | . . . . Garrison Access . | . . . . Data Cores Recovered . | . . . . Used . | . . . . Hacking Detections 5 | . 1 3 1 Full Trace Events . | . . . . Feedback Events . | . . . . Feedback Blocked . | . . . . Robot Schematics Acquired . | . . . . Robots Built . | . . . . Authchips . | . . . . Time . | . . . . Total Robot Build Rating . | . . . . Part Schematics Acquired . | . . . . Parts Built . | . . . . Authchips . | . . . . Time . | . . . . Total Part Build Rating . | . . . . Part Studies Acquired . | . . . . Parts Repaired . | . . . . Time . | . . . . Parts Recycled . | . . . . Recycled Matter . | . . . . Retrieved Matter . | . . . . Retrieved Components . | . . . . Parts Scanalyzed . | . . . . Part Schematics Acquired . | . . . . Parts Damaged . | . . . . Bothacking | -11 -10 -9 -8 ------------ Run | Yrd Mat Mat Mat Used RIF Installer . | . . . . Robots Hacked . | . . . . Non-combat . | . . . . Combat . | . . . . Robot Hacks Applied . | . . . . Relay Couplers Released . | . . . . Fabnet Peak Effective % . | . . . . Robots Rewired . | . . . . Allies Hacked . | . . . . Hacks Repelled . | . . . . Allies | -11 -10 -9 -8 -------- Run | Yrd Mat Mat Mat Total Allies . | . . . . Largest Group . | . . . . Highest-Rated Group . | . . . . Highest-Rated Ally . | . . . . Total Orders . | . . . . Ally Attacks . | . . . . Total Damage . | . . . . Kills . | . . . . Allies Corrupted . | . . . . Allies Melted . | . . . . Intel | -11 -10 -9 -8 ------- Run | Yrd Mat Mat Mat Active Infowar (turns) 813 | 8 134 467 204 Terrain 142 | . . . 142 Seismic 813 | 8 134 467 204 Robot Analysis Total 3 | . 2 1 . Derelict Logs Recovered . | . . . . Drone Launches . | . . . . Drone Recoveries . | . . . . Exploration | -11 -10 -9 -8 ------------- Run | Yrd Mat Mat Mat Turns Passed 985 | 143 134 467 241 Spaces Moved 472 | 54 86 225 107 Core 36 | 6 . . 30 Treads . | . . . . Legs 436 | 48 86 225 77 Wheels . | . . . . Hover . | . . . . Flight . | . . . . Fastest Speed 50 | 50 120 120 100 Average Speed 118 | 113 120 120 117 Slowest Speed 126 | 120 120 120 126 Overloaded Moves . | . . . . Propulsion Burnouts . | . . . . Robots Hopped . | . . . . Potential Cave-ins . | . . . . Cave-ins Triggered . | . . . . Exploration Rate (%) 18 | 4 22 28 18 Regions Visited 3 Branch Regions . Pre-discovered Areas . | . . . . Known Exits Taken . | . . . . Unknown Exits Taken 3 | 1 1 1 . Scrap Searched . | . . . . Spaces Dug . | . . . . Terrain Destroyed 16 | . . 5 11 Melee . | . . . . Projectile . | . . . . AOE 16 | . . 5 11 Terrain Rammed . | . . . . Walls Destroyed . | . . . . Machines Disabled . | . . . . Actions | -11 -10 -9 -8 --------- Run | Yrd Mat Mat Mat Total 774 | 97 103 387 187 Wait 202 | 16 2 141 43 Move 469 | 53 85 224 107 Hop . | . . . . Pick Up 12 | 3 4 1 4 Fast Attach 13 | 7 2 1 3 Attach 7 | . . . 7 Detach . | . . . . Swap 2 | . . 2 . Drop 8 | . 3 1 4 Fire 59 | 18 7 17 17 Melee . | . . . . Ram 2 | . . . 2 Kick . | . . . . Crush . | . . . . Escape Stasis . | . . . . Rewire . | . . . . Trap . | . . . . Miscellaneous . | . . . . Route ------- -11/Scrapyard -10/Materials -9/Materials -8/Materials History --------- Turn | Location | Event 20 | -11/Scrapyard | Discovered new exit (range 15) 144 | -11/Scrapyard | Entered Materials 233 | -10/Materials | Discovered new exit (range 13) 278 | -10/Materials | Entered another Materials area 278 | -9/Materials | Evolved 2 slots: Propulsion x1, Utility x1 315 | -9/Materials | Build established: Mutant 677 | -9/Materials | Discovered new exit (range 16) 745 | -9/Materials | Entered another Materials area 745 | -8/Materials | Evolved 2 slots: Utility x2 956 | -8/Materials | Core integrity fell below 50% 975 | -8/Materials | Core integrity fell below 20% 986 | -8/Materials | Lost 12 parts (2p3n2u5w) 986 | -8/Materials | Destroyed by G-47 Trooper with Particle Gun Last Messages --------------- 00943_ U-05 Engineer builds a Wall. 00943_ Y-45 Defender destroyed. 00943_ G-47 Trooper destroyed. 00944_ Imp. Aluminum Leg destroyed. 00944_ K-01 Serf collects debris. 00945_ Disposable Heat Sink melts away. 00945_ Reactive Plating destroyed. 00949_ K-01 Serf collects debris. 00949_ Seismic Detector destroyed. 00949_ Critical hit (Blast). 00950_ Imp. EM Shotgun destroyed. 00950_ Titanium Leg destroyed. 00951_ Ion Cannon destroyed. 00952_ K-01 Serf collects debris. 00952_ Slammed into G-47 Trooper. 00953_ Penetrated by Slug. 00954_ Slammed into K-01 Serf. 00955_ Ion Engine destroyed. 00955_ Critical hit (Burn: +37). 00956_ K-01 Serf collects debris. Map ----- +----------------------------------------------------+ | ?????????????????????????????????????????????????? | | ?????????????????????????????????????????????????? | | ?????????????????????????????????????????????????? | | ?????????????????????????????????????????????????? | | ?????????????????????????????????????????????????? | | ?????????????????????????????????????????????????? | | ?????????????????????????????????????????????????? | | ?????????????????????????????????????????????????? | | ?????????????????????????????????????????????????? | | ?????????????????????????????????????????????????? | | ?????????????????????????????????????????????????? | | ?????????????????????????????????????????????????? | | ?????????????????????????????????????????????????? | | ?????????????????????????????????????????????????? | | ?????????????????????????????????????????????????? | | ?????????????#] ?????????????????????????????????? | | ?????????????# ????????????????????????????????? | | ?????????????? ????????????????????????????????? | | ??????????????? ???????????????????????????????? | | ??????????#######Y#######????????????????????????? | | ?????????? #####????????????????????? | | ????????? ==#????????????????????? | | ????????? ]]] ==#????????????????????? | | ????????? g ]]] !!#????????????????????? | | ????????# g ]] !!#????????????????????? | | ????????# @==#????????????????????? | | ????????# ==#????????????????????? | | ??????? ![ l #####????????????????????? | | ??????? !] #????????????????????????? | | ??????? [ u #????????????????????????? | | ?????????######"T"### #????????????????????????? | | ??????????????###???# #????????????????? ??????? | | ????????????????????# #???????????????? #?????? | | ????????????????????+ +???????????????? #?????? | | ????????????????????# #??????????????? #??#??# | | ????????????????????# #?????+#???????? ##????? | | ???????????????????## ###### #???????# #??##?# | | ???????????????????# ######## ??????# | | ???????????????????# ??#??#? | | ???????????????????+ ????#?##? | | ???????????????????# [ *= ????#?#?## | | ???????????????????#""" ########"# ? ???#??# | | ???????????????????#"R ## =[%= #??##?##?### | | ???????????????????#""" ## [*! ####?#?#?#?# | | ???????????????????# "" # %=%[ #???######## | | ???????????????????# ## "%[!! ###?# # ## | | ???????????????????# ######%/############# | | ???????????? !%*% = % | | ???????????? | | ???????????? T % % | +----------------------------------------------------+ Best States ------------- Heat Dissipation 31 Coolant Potential 50 Energy Generation 12 Energy Capacity 265 Matter Stores 300 Matter Capacity 300 Sight Range 16 Terrain Scan Range 16 Terrain Scan Density 85 Armor Coverage 150 Resistance: KI 20 Evasion (%) 55 Item Schematics ----------------- None Robot Schematics ------------------ None Fabricated ------------ Nothing Repaired ---------- Nothing Studied --------- None Alien Tech Used ----------------- None Achievements -------------- None Challenges ------------ None Game ------ Seed GhostLargeCompressor Manual? 0 Play Time 00:12:05 Cumulative 281.0 hours Start 2026.08.23 @ 21:31:35 End 2026.08.23 @ 21:41:40 Sessions 1 Manual Loads 0 Difficulty Rogue Special Mode None Game No. 357 Rogue 357 Adventurer 0 Explorer 0 Win Type - Total 7 Types 6/0/0/1/0/0/0/0/0/0 Lore% 80 Gallery% 67 Achievement% 56 Wizard Run 0 Options --------- Layout 2 ASCII 0 Keyboard 0 Movement Mouse Keybinds 0 Fullscreen 1 Font 24/Smallcaps Map View 50x44 Zoom Use 0% Tactical HUD 1 Map Filters NONE Filters NONE Steam 1 RUN: 8106be6f-91d9-4b15-b794-8852b6db7dfb